[Event "*** Titled Tuesday Blitz"]
[Site "Chess.com"]
[Date "2019.02.05"]
[Round "6"]
[White "Caterpiller35"]
[Black "WorldChampionBulletChess"]
[Result "1-0"]
[WhiteElo "2248"]
[BlackElo "2094"]
[TimeControl "180+2"]
[EndTime "14:22:58 PST"]
[Termination "Caterpiller35 won by resignation"]

1. d4 {[%clk 0:03:01.9]} 1... d5 {[%clk 0:03:01.9]} 2. Bf4 {[%clk 0:03:03]} 2...
c6 {[%clk 0:03:03.8]} 3. e3 {[%clk 0:03:04.5]} 3... Nf6 {[%clk 0:01:42]} 4. c4
{[%clk 0:03:02]} 4... e6 {[%clk 0:01:42.8]} 5. Nc3 {[%clk 0:03:03]} 5... Bd6
{[%clk 0:01:43.1]} 6. Bg3 {[%clk 0:03:00.2]} 6... O-O {[%clk 0:01:43.2]} 7. Bd3
{[%clk 0:02:59.2]} 7... dxc4 {[%clk 0:01:43.7]} 8. Bxc4 {[%clk 0:02:59.4]} 8...
b5 {[%clk 0:01:45.1]} 9. Bd3 {[%clk 0:03:00.6]} 9... b4 {[%clk 0:01:40.7]} 10.
Ne4 {[%clk 0:02:53.7]} 10... Nxe4 {[%clk 0:01:36.2]} 11. Bxe4 {[%clk 0:02:55.6]}
11... f5 {[%clk 0:01:36.8]} 12. Bd3 {[%clk 0:02:47.9]} 12... f4 {[%clk 0:01:26]}
13. Bxf4 {[%clk 0:02:22.5]} 13... Bxf4 {[%clk 0:01:24.4]} 14. exf4 {[%clk
0:02:23.4]} 14... Rxf4 {[%clk 0:01:19.7]} 15. Ne2 {[%clk 0:02:24.2]} 15... Rf6
{[%clk 0:01:16.5]} 16. O-O {[%clk 0:02:18]} 16... Bb7 {[%clk 0:01:16.5]} 17. Rc1
{[%clk 0:02:17.8]} 17... Nd7 {[%clk 0:01:16.8]} 18. Ng3 {[%clk 0:02:14.9]} 18...
Nb6 {[%clk 0:01:13.8]} 19. Ne4 {[%clk 0:02:08.7]} 19... Rf8 {[%clk 0:01:12.5]}
20. Nc5 {[%clk 0:02:07.8]} 20... Qc8 {[%clk 0:01:05.3]} 21. Re1 {[%clk 0:02:02]}
21... Nd5 {[%clk 0:00:55]} 22. Nxe6 {[%clk 0:01:46]} 22... Rf6 {[%clk 0:00:41]}
23. Nc5 {[%clk 0:01:22.1]} 23... Nf4 {[%clk 0:00:34.9]} 24. Be4 {[%clk
0:01:21.4]} 24... Ba6 {[%clk 0:00:17.2]} 25. d5 {[%clk 0:00:43.6]} 25... cxd5
{[%clk 0:00:12]} 26. Bxd5+ {[%clk 0:00:37.8]} 26... Nxd5 {[%clk 0:00:13.9]} 27.
Qxd5+ {[%clk 0:00:37.5]} 27... Kh8 {[%clk 0:00:14.9]} 28. Nxa6 {[%clk
0:00:38.3]} 1-0

[Event "*** Titled Tuesday Blitz"]
[Site "Chess.com"]
[Date "2019.02.05"]
[Round "6"]
[White "TheBigBoss04"]
[Black "AlexTriapishko"]
[Result "0-1"]
[WhiteElo "2545"]
[BlackElo "2758"]
[TimeControl "180+2"]
[EndTime "14:23:00 PST"]
[Termination "AlexTriapishko won by resignation"]

1. b3 {[%clk 0:03:01.9]} 1... Nf6 {[%clk 0:02:48.5]} 2. Bb2 {[%clk 0:03:03.8]}
2... g6 {[%clk 0:02:50.1]} 3. g3 {[%clk 0:03:01.7]} 3... Bg7 {[%clk 0:02:50.3]}
4. Bg2 {[%clk 0:03:03.6]} 4... O-O {[%clk 0:02:51.8]} 5. c4 {[%clk 0:03:04.9]}
5... c5 {[%clk 0:02:38.3]} 6. Nc3 {[%clk 0:03:02.9]} 6... d6 {[%clk 0:02:38.3]}
7. e3 {[%clk 0:02:53.7]} 7... Nc6 {[%clk 0:02:23.1]} 8. Nge2 {[%clk 0:02:51.6]}
8... Ne5 {[%clk 0:02:15]} 9. d4 {[%clk 0:02:31.3]} 9... Nc6 {[%clk 0:02:06.9]}
10. O-O {[%clk 0:01:31.8]} 10... Qa5 {[%clk 0:02:00.5]} 11. d5 {[%clk
0:01:15.9]} 11... Nb4 {[%clk 0:01:55.2]} 12. Qd2 {[%clk 0:01:02.2]} 12... Bd7
{[%clk 0:01:48.1]} 13. Rfd1 {[%clk 0:01:00.8]} 13... Rab8 {[%clk 0:01:39.9]} 14.
a3 {[%clk 0:00:55.7]} 14... Na6 {[%clk 0:01:40.1]} 15. Nb5 {[%clk 0:00:29.3]}
15... Qxd2 {[%clk 0:01:37.5]} 16. Rxd2 {[%clk 0:00:31.2]} 16... Bxb5 {[%clk
0:01:39.1]} 17. cxb5 {[%clk 0:00:33]} 17... Nc7 {[%clk 0:01:41]} 18. a4 {[%clk
0:00:33]} 18... Nd7 {[%clk 0:01:39.1]} 19. Bxg7 {[%clk 0:00:31.5]} 19... Kxg7
{[%clk 0:01:41]} 20. Rc1 {[%clk 0:00:29.4]} 20... a6 {[%clk 0:01:42]} 21. Nc3
{[%clk 0:00:12.3]} 21... axb5 {[%clk 0:01:41.6]} 22. axb5 {[%clk 0:00:13.3]}
22... Ra8 {[%clk 0:01:41.7]} 23. Bf1 {[%clk 0:00:10.1]} 23... Ra3 {[%clk
0:01:42]} 24. Rb2 {[%clk 0:00:06.8]} 24... Nb6 {[%clk 0:01:40.1]} 25. Bc4 {[%clk
0:00:06.3]} 25... Rfa8 {[%clk 0:01:40.6]} 26. Kg2 {[%clk 0:00:06.8]} 26... f5
{[%clk 0:01:39.4]} 27. h4 {[%clk 0:00:06.3]} 27... Kf6 {[%clk 0:01:36.8]} 28.
Rcc2 {[%clk 0:00:07.6]} 28... Ra1 {[%clk 0:01:37.6]} 29. Rd2 {[%clk 0:00:07]}
29... R8a3 {[%clk 0:01:36.1]} 30. Nb1 {[%clk 0:00:06.1]} 30... Ra5 {[%clk
0:01:33.7]} 31. Nc3 {[%clk 0:00:06.8]} 31... Rc1 {[%clk 0:01:30.8]} 32. Rbc2
{[%clk 0:00:04.5]} 32... Raa1 {[%clk 0:01:31.1]} 33. Rxc1 {[%clk 0:00:04.2]}
33... Rxc1 {[%clk 0:01:33]} 34. Ne2 {[%clk 0:00:05.5]} 34... Nxc4 {[%clk
0:01:30.7]} 35. bxc4 {[%clk 0:00:07.1]} 35... Rxc4 {[%clk 0:01:32.3]} 36. b6
{[%clk 0:00:08.4]} 36... Na8 {[%clk 0:01:30.4]} 37. Ra2 {[%clk 0:00:08.2]} 37...
Nxb6 {[%clk 0:01:31]} 38. Ra7 {[%clk 0:00:09.8]} 38... Nxd5 {[%clk 0:01:29.6]}
39. Rxb7 {[%clk 0:00:11.7]} 39... Rb4 {[%clk 0:01:30.4]} 40. Ra7 {[%clk
0:00:12]} 40... Rb2 {[%clk 0:01:30.1]} 41. Kf3 {[%clk 0:00:12.7]} 41... e5
{[%clk 0:01:31.3]} 42. Nc1 {[%clk 0:00:07.9]} 42... e4+ {[%clk 0:01:31.5]} 43.
Kg2 {[%clk 0:00:08.9]} 43... Nxe3+ {[%clk 0:01:32.9]} 0-1

[Event "*** Titled Tuesday Blitz"]
[Site "Chess.com"]
[Date "2019.02.05"]
[Round "6"]
[White "RojonR"]
[Black "xberli"]
[Result "0-1"]
[WhiteElo "2494"]
[BlackElo "2544"]
[TimeControl "180+2"]
[EndTime "14:23:08 PST"]
[Termination "xberli won by resignation"]

1. e4 {[%clk 0:03:01.9]} 1... c5 {[%clk 0:02:59.9]} 2. Nf3 {[%clk 0:03:02.5]}
2... d6 {[%clk 0:03:01]} 3. Bb5+ {[%clk 0:03:00.5]} 3... Nd7 {[%clk 0:03:01.8]}
4. c3 {[%clk 0:02:58.4]} 4... a6 {[%clk 0:03:01.7]} 5. Ba4 {[%clk 0:02:48.8]}
5... Nf6 {[%clk 0:03:01.7]} 6. Bc2 {[%clk 0:02:48.3]} 6... Qc7 {[%clk
0:02:56.5]} 7. d4 {[%clk 0:02:47.6]} 7... e5 {[%clk 0:02:53.2]} 8. O-O {[%clk
0:02:46.9]} 8... Be7 {[%clk 0:02:53.5]} 9. Nbd2 {[%clk 0:02:46.1]} 9... O-O
{[%clk 0:02:52.3]} 10. Nc4 {[%clk 0:02:40.8]} 10... Re8 {[%clk 0:02:44.7]} 11.
Ne3 {[%clk 0:02:40.4]} 11... Bf8 {[%clk 0:02:43.8]} 12. dxe5 {[%clk 0:02:11.4]}
12... dxe5 {[%clk 0:02:35.2]} 13. Nf5 {[%clk 0:02:06.9]} 13... b5 {[%clk
0:02:18.2]} 14. Qe2 {[%clk 0:01:57.2]} 14... Bb7 {[%clk 0:02:16.5]} 15. Bg5
{[%clk 0:01:52.1]} 15... h6 {[%clk 0:02:07.8]} 16. Bh4 {[%clk 0:01:50.4]} 16...
Kh7 {[%clk 0:02:07.3]} 17. Rad1 {[%clk 0:01:45.7]} 17... g6 {[%clk 0:02:06]} 18.
Ne3 {[%clk 0:01:45.5]} 18... Bg7 {[%clk 0:02:05.8]} 19. c4 {[%clk 0:01:24.6]}
19... Nxe4 {[%clk 0:01:31.2]} 20. cxb5 {[%clk 0:01:16.6]} 20... axb5 {[%clk
0:01:29.2]} 21. Qxb5 {[%clk 0:01:16.8]} 21... Bc6 {[%clk 0:01:24.6]} 22. Qc4
{[%clk 0:01:10.7]} 22... Nb6 {[%clk 0:01:19.3]} 23. Qe2 {[%clk 0:00:59.3]} 23...
f5 {[%clk 0:01:18.3]} 24. h3 {[%clk 0:00:36]} 24... Rxa2 {[%clk 0:01:07]} 25.
Bb3 {[%clk 0:00:32.3]} 25... Ra7 {[%clk 0:00:53.2]} 26. Nd5 {[%clk 0:00:25.4]}
26... Nxd5 {[%clk 0:00:30.9]} 27. Bxd5 {[%clk 0:00:27.3]} 27... Bxd5 {[%clk
0:00:32.3]} 28. Rxd5 {[%clk 0:00:27.9]} 28... g5 {[%clk 0:00:33.3]} 29. Bxg5
{[%clk 0:00:18.3]} 29... Qf7 {[%clk 0:00:27.4]} 30. Bc1 {[%clk 0:00:16.8]} 30...
Qxd5 {[%clk 0:00:25.9]} 31. Rd1 {[%clk 0:00:10]} 31... Qf7 {[%clk 0:00:26.6]}
0-1

[Event "*** Titled Tuesday Blitz"]
[Site "Chess.com"]
[Date "2019.02.05"]
[Round "6"]
[White "nochewycandy"]
[Black "Indianlad"]
[Result "0-1"]
[WhiteElo "2338"]
[BlackElo "2936"]
[TimeControl "180+2"]
[EndTime "14:23:18 PST"]
[Termination "Indianlad won by resignation"]

1. e4 {[%clk 0:03:01.9]} 1... c5 {[%clk 0:02:59.4]} 2. Nf3 {[%clk 0:03:02.8]}
2... d6 {[%clk 0:03:00.4]} 3. Bb5+ {[%clk 0:03:03.2]} 3... Nd7 {[%clk
0:03:01.1]} 4. O-O {[%clk 0:03:03.9]} 4... Nf6 {[%clk 0:03:02.6]} 5. Re1 {[%clk
0:03:04.1]} 5... a6 {[%clk 0:03:03.1]} 6. Bd3 {[%clk 0:03:04.8]} 6... e5 {[%clk
0:02:59.8]} 7. c3 {[%clk 0:03:01.5]} 7... g5 {[%clk 0:02:59.4]} 8. Kh1 {[%clk
0:02:36.1]} 8... g4 {[%clk 0:02:56.2]} 9. Ng1 {[%clk 0:02:37.3]} 9... h5 {[%clk
0:02:56.4]} 10. Bf1 {[%clk 0:02:35.5]} 10... h4 {[%clk 0:02:56.9]} 11. d4 {[%clk
0:02:35.8]} 11... g3 {[%clk 0:02:58]} 12. fxg3 {[%clk 0:02:20.5]} 12... hxg3
{[%clk 0:02:53.4]} 13. h3 {[%clk 0:02:21.8]} 13... b5 {[%clk 0:02:43.7]} 14. a4
{[%clk 0:02:01.5]} 14... b4 {[%clk 0:02:44.5]} 15. Nd2 {[%clk 0:01:52.5]} 15...
exd4 {[%clk 0:02:17.4]} 16. cxd4 {[%clk 0:01:52.1]} 16... cxd4 {[%clk
0:02:19.3]} 17. Ngf3 {[%clk 0:01:52.6]} 17... Ng4 {[%clk 0:02:18.8]} 18. Qb3
{[%clk 0:01:47.3]} 18... Nf2+ {[%clk 0:02:10.2]} 19. Kg1 {[%clk 0:01:48.2]}
19... Bg7 {[%clk 0:02:11]} 20. Nc4 {[%clk 0:01:45.9]} 20... Nc5 {[%clk
0:02:10.7]} 21. Qxb4 {[%clk 0:01:44.3]} 21... O-O {[%clk 0:02:08.5]} 22. Qb6
{[%clk 0:00:58.2]} 22... Qf6 {[%clk 0:02:00.3]} 23. Ra3 {[%clk 0:00:23.6]} 23...
d3 {[%clk 0:01:56.7]} 24. Re3 {[%clk 0:00:11.7]} 24... Ncxe4 {[%clk 0:01:46.2]}
25. Bxd3 {[%clk 0:00:11.8]} 25... d5 {[%clk 0:01:31]} 26. Qxf6 {[%clk 0:00:12]}
26... Bxf6 {[%clk 0:01:32.6]} 27. Nb6 {[%clk 0:00:12.3]} 27... Bb7 {[%clk
0:01:26.4]} 28. Nxa8 {[%clk 0:00:13]} 28... Rxa8 {[%clk 0:01:28.3]} 29. Nd2
{[%clk 0:00:05.7]} 29... Bd4 {[%clk 0:01:27.3]} 30. Bxe4 {[%clk 0:00:06]} 30...
Nxe4 {[%clk 0:01:22.6]} 31. Nxe4 {[%clk 0:00:06.8]} 31... dxe4 {[%clk
0:01:23.2]} 32. Kf1 {[%clk 0:00:07.5]} 32... Bxe3 {[%clk 0:01:19.4]} 33. Rxe3
{[%clk 0:00:08.4]} 33... f5 {[%clk 0:01:19.2]} 34. Rxg3+ {[%clk 0:00:09.2]}
34... Kf7 {[%clk 0:01:20.7]} 35. Bd2 {[%clk 0:00:09.1]} 35... Bc6 {[%clk
0:01:19.3]} 36. a5 {[%clk 0:00:09.3]} 36... Rd8 {[%clk 0:01:18.5]} 37. Bc3
{[%clk 0:00:09.9]} 37... Bb5+ {[%clk 0:01:18.7]} 38. Ke1 {[%clk 0:00:10.7]}
38... Ba4 {[%clk 0:01:07.8]} 39. Rg7+ {[%clk 0:00:10.7]} 39... Ke6 {[%clk
0:01:08.4]} 40. Ke2 {[%clk 0:00:10.7]} 40... f4 {[%clk 0:01:08.5]} 41. Rg6+
{[%clk 0:00:06.9]} 41... Kd5 {[%clk 0:01:10]} 42. Rxa6 {[%clk 0:00:05.8]} 42...
Bb5+ {[%clk 0:01:11]} 0-1

[Event "*** Titled Tuesday Blitz"]
[Site "Chess.com"]
[Date "2019.02.05"]
[Round "6"]
[White "hurricane7791"]
[Black "x-5963514717"]
[Result "1-0"]
[WhiteElo "2670"]
[BlackElo "2455"]
[TimeControl "180+2"]
[EndTime "14:23:18 PST"]
[Termination "hurricane7791 won by resignation"]

1. d4 {[%clk 0:03:01.9]} 1... Nf6 {[%clk 0:02:59.8]} 2. c4 {[%clk 0:03:03]} 2...
g6 {[%clk 0:03:00.7]} 3. Nc3 {[%clk 0:03:04.1]} 3... d5 {[%clk 0:03:01.9]} 4.
Bg5 {[%clk 0:03:04.8]} 4... Bg7 {[%clk 0:03:02.7]} 5. e3 {[%clk 0:03:04.5]} 5...
c5 {[%clk 0:02:59.2]} 6. Nf3 {[%clk 0:03:04.3]} 6... cxd4 {[%clk 0:02:55.4]} 7.
exd4 {[%clk 0:03:04.3]} 7... O-O {[%clk 0:02:55.1]} 8. h3 {[%clk 0:03:04.8]}
8... Ne4 {[%clk 0:02:53.3]} 9. Be3 {[%clk 0:03:05.1]} 9... Nxc3 {[%clk
0:02:52.3]} 10. bxc3 {[%clk 0:03:07]} 10... Nc6 {[%clk 0:02:53.4]} 11. Be2
{[%clk 0:03:07]} 11... e5 {[%clk 0:02:50.7]} 12. O-O {[%clk 0:03:04.6]} 12...
exd4 {[%clk 0:02:47.8]} 13. cxd4 {[%clk 0:03:05.4]} 13... Re8 {[%clk 0:02:49.2]}
14. Rc1 {[%clk 0:03:05.1]} 14... Bf5 {[%clk 0:02:43.3]} 15. cxd5 {[%clk
0:02:54.6]} 15... Qxd5 {[%clk 0:02:43.3]} 16. Bc4 {[%clk 0:02:55.5]} 16... Qd7
{[%clk 0:02:35]} 17. Ng5 {[%clk 0:02:46.9]} 17... Nd8 {[%clk 0:02:33.6]} 18. Qb3
{[%clk 0:02:45.5]} 18... Re7 {[%clk 0:02:34.1]} 19. d5 {[%clk 0:02:43.8]} 19...
h6 {[%clk 0:02:34.1]} 20. Nf3 {[%clk 0:02:44.7]} 20... Be4 {[%clk 0:02:24.3]}
21. Nd2 {[%clk 0:02:45.3]} 21... Bf5 {[%clk 0:02:12.5]} 22. Rfd1 {[%clk
0:02:43.9]} 22... a6 {[%clk 0:02:03.7]} 23. a4 {[%clk 0:02:44.9]} 23... Rc8
{[%clk 0:02:04]} 24. Bf1 {[%clk 0:02:38.5]} 24... Rxc1 {[%clk 0:02:01.8]} 25.
Rxc1 {[%clk 0:02:40.4]} 25... Re5 {[%clk 0:01:48.2]} 26. Bc4 {[%clk 0:02:40.5]}
26... h5 {[%clk 0:01:41.2]} 27. a5 {[%clk 0:02:39.4]} 27... Qe8 {[%clk 0:01:33]}
28. Bf1 {[%clk 0:02:35]} 28... Bf8 {[%clk 0:01:29.1]} 29. Rd1 {[%clk 0:02:31.3]}
29... Re7 {[%clk 0:01:13.3]} 30. Nc4 {[%clk 0:02:30.7]} 30... Rd7 {[%clk
0:01:09.9]} 31. Nb6 {[%clk 0:02:25.9]} 31... Rc7 {[%clk 0:01:09.7]} 32. Nc4
{[%clk 0:02:13.5]} 32... Qb5 {[%clk 0:01:02.7]} 33. Qa2 {[%clk 0:01:56.7]} 33...
Qb4 {[%clk 0:00:43.3]} 34. Bb6 {[%clk 0:01:48.4]} 34... Rc8 {[%clk 0:00:44.1]}
35. Qe2 {[%clk 0:01:41.7]} 35... Bd7 {[%clk 0:00:28.4]} 36. Bd4 {[%clk
0:01:39.2]} 36... Bg7 {[%clk 0:00:21.9]} 37. Bxg7 {[%clk 0:01:39.7]} 37... Kxg7
{[%clk 0:00:23.8]} 38. Qe5+ {[%clk 0:01:41]} 38... Kg8 {[%clk 0:00:25.2]} 39.
Bd3 {[%clk 0:01:32.3]} 39... Ba4 {[%clk 0:00:26]} 40. Re1 {[%clk 0:01:29.1]}
40... Bb5 {[%clk 0:00:26.4]} 41. Nd6 {[%clk 0:01:27.3]} 41... Rc3 {[%clk
0:00:17.2]} 42. Bxb5 {[%clk 0:01:26.1]} 42... axb5 {[%clk 0:00:19.1]} 43. Qf6
{[%clk 0:01:24.4]} 43... Rc8 {[%clk 0:00:14.5]} 44. Re8+ {[%clk 0:01:24.9]} 1-0

[Event "*** Titled Tuesday Blitz"]
[Site "Chess.com"]
[Date "2019.02.05"]
[Round "6"]
[White "Ellaijio_B"]
[Black "DrVelja"]
[Result "0-1"]
[WhiteElo "2636"]
[BlackElo "2642"]
[TimeControl "180+2"]
[EndTime "14:23:19 PST"]
[Termination "DrVelja won by checkmate"]

1. e4 {[%clk 0:02:56.6]} 1... c5 {[%clk 0:03:00.7]} 2. Nf3 {[%clk 0:02:57.5]}
2... d6 {[%clk 0:03:02.3]} 3. d4 {[%clk 0:02:58.4]} 3... cxd4 {[%clk 0:03:04.2]}
4. Nxd4 {[%clk 0:03:00.2]} 4... Nf6 {[%clk 0:03:06.1]} 5. Nc3 {[%clk 0:03:01.3]}
5... a6 {[%clk 0:03:08]} 6. f4 {[%clk 0:03:02.8]} 6... g6 {[%clk 0:03:07.2]} 7.
Be3 {[%clk 0:03:02.1]} 7... Bg7 {[%clk 0:03:06.6]} 8. Qf3 {[%clk 0:02:59.8]}
8... O-O {[%clk 0:03:06.5]} 9. Bc4 {[%clk 0:02:54.6]} 9... e5 {[%clk 0:03:02.1]}
10. fxe5 {[%clk 0:02:49.2]} 10... dxe5 {[%clk 0:03:02.9]} 11. Nde2 {[%clk
0:02:48.5]} 11... b5 {[%clk 0:02:48.9]} 12. Bb3 {[%clk 0:02:47.9]} 12... Bb7
{[%clk 0:02:47.5]} 13. Rd1 {[%clk 0:02:48.5]} 13... Nbd7 {[%clk 0:02:46.5]} 14.
O-O {[%clk 0:02:46.6]} 14... Qc7 {[%clk 0:02:39.4]} 15. Ng3 {[%clk 0:02:44.5]}
15... Nc5 {[%clk 0:02:31.8]} 16. Bg5 {[%clk 0:02:36.5]} 16... Nxb3 {[%clk
0:02:26]} 17. axb3 {[%clk 0:02:00.6]} 17... Ne8 {[%clk 0:02:17.2]} 18. Qg4
{[%clk 0:01:39.8]} 18... f6 {[%clk 0:01:57.3]} 19. Be3 {[%clk 0:01:19.8]} 19...
Qf7 {[%clk 0:01:44.1]} 20. Bc5 {[%clk 0:00:58.9]} 20... f5 {[%clk 0:01:32.3]}
21. exf5 {[%clk 0:00:52.1]} 21... Nf6 {[%clk 0:01:33.3]} 22. fxg6 {[%clk
0:00:46.4]} 22... hxg6 {[%clk 0:01:33.3]} 23. Bxf8 {[%clk 0:00:23.8]} 23... Rxf8
{[%clk 0:01:26.1]} 24. Qe2 {[%clk 0:00:18.7]} 24... Qe7 {[%clk 0:01:13]} 25.
Nce4 {[%clk 0:00:18.1]} 25... Nd5 {[%clk 0:01:13.7]} 26. Rxf8+ {[%clk 0:00:18]}
26... Qxf8 {[%clk 0:01:15.5]} 27. Qf2 {[%clk 0:00:18.3]} 27... Nf4 {[%clk
0:01:16.8]} 28. Qc5 {[%clk 0:00:17.1]} 28... Qa8 {[%clk 0:01:12.6]} 29. Qe3
{[%clk 0:00:16.5]} 29... Bh6 {[%clk 0:01:14.1]} 30. Qf3 {[%clk 0:00:16.2]} 30...
Qc8 {[%clk 0:01:09.3]} 31. c3 {[%clk 0:00:14.7]} 31... Bg7 {[%clk 0:01:08]} 32.
Qe3 {[%clk 0:00:08.6]} 32... Qe6 {[%clk 0:01:08.4]} 33. Nc5 {[%clk 0:00:08.9]}
33... Qc6 {[%clk 0:01:09]} 34. Nce4 {[%clk 0:00:07.9]} 34... Qe6 {[%clk
0:01:10.2]} 35. b4 {[%clk 0:00:08.4]} 35... Qb3 {[%clk 0:01:10.8]} 36. Rd8+
{[%clk 0:00:07.7]} 36... Bf8 {[%clk 0:01:12.4]} 37. h3 {[%clk 0:00:07.4]} 37...
Qxb2 {[%clk 0:01:12.8]} 38. Qd2 {[%clk 0:00:05.3]} 38... Qb1+ {[%clk 0:01:13.6]}
39. Kh2 {[%clk 0:00:06.1]} 39... Bxe4 {[%clk 0:01:15.2]} 40. Nxe4 {[%clk
0:00:06.7]} 40... Qxe4 {[%clk 0:01:17.1]} 41. Qd6 {[%clk 0:00:07.4]} 41... Qxg2#
{[%clk 0:01:18]} 0-1

[Event "*** Titled Tuesday Blitz"]
[Site "Chess.com"]
[Date "2019.02.05"]
[Round "6"]
[White "1e41-0"]
[Black "Manukyan_Artak"]
[Result "0-1"]
[WhiteElo "2528"]
[BlackElo "2371"]
[TimeControl "180+2"]
[EndTime "14:23:21 PST"]
[Termination "Manukyan_Artak won by resignation"]

1. d4 {[%clk 0:03:01.9]} 1... Nf6 {[%clk 0:02:59.8]} 2. c4 {[%clk 0:03:03.3]}
2... g6 {[%clk 0:03:00.9]} 3. Nc3 {[%clk 0:03:04.8]} 3... Bg7 {[%clk 0:03:02.1]}
4. e4 {[%clk 0:03:06]} 4... O-O {[%clk 0:03:03.3]} 5. Nge2 {[%clk 0:03:07.5]}
5... d6 {[%clk 0:03:03.8]} 6. f3 {[%clk 0:03:09.1]} 6... e5 {[%clk 0:03:04.8]}
7. dxe5 {[%clk 0:03:10]} 7... dxe5 {[%clk 0:03:05.7]} 8. Qxd8 {[%clk 0:03:11.9]}
8... Rxd8 {[%clk 0:03:06.5]} 9. Nd5 {[%clk 0:03:13.8]} 9... Nxd5 {[%clk
0:03:04.9]} 10. cxd5 {[%clk 0:03:15.7]} 10... c6 {[%clk 0:03:03.2]} 11. Nc3
{[%clk 0:03:16.9]} 11... cxd5 {[%clk 0:02:55.1]} 12. Nxd5 {[%clk 0:03:18.8]}
12... Nc6 {[%clk 0:02:55.1]} 13. Bg5 {[%clk 0:03:20]} 13... Rd6 {[%clk
0:02:46.2]} 14. Rc1 {[%clk 0:03:21.4]} 14... Be6 {[%clk 0:02:30]} 15. Nc7 {[%clk
0:03:21.9]} 15... Rc8 {[%clk 0:02:26]} 16. Nxe6 {[%clk 0:03:23]} 16... Rxe6
{[%clk 0:02:27]} 17. Bc4 {[%clk 0:03:24.4]} 17... Rd6 {[%clk 0:02:25.1]} 18. Bd5
{[%clk 0:03:11.8]} 18... Bf6 {[%clk 0:02:18.2]} 19. Be3 {[%clk 0:03:07.9]} 19...
a6 {[%clk 0:01:57.1]} 20. Ke2 {[%clk 0:03:01.2]} 20... Nd4+ {[%clk 0:01:51]} 21.
Bxd4 {[%clk 0:03:02.1]} 21... Rxc1 {[%clk 0:01:50.9]} 22. Rxc1 {[%clk 0:03:04]}
22... exd4 {[%clk 0:01:51.8]} 23. Rc7 {[%clk 0:03:05.6]} 23... b5 {[%clk
0:01:33.5]} 24. Rxf7 {[%clk 0:02:52]} 24... d3+ {[%clk 0:01:22.4]} 25. Kd1
{[%clk 0:02:40.9]} 25... Kh8 {[%clk 0:00:56.5]} 26. b3 {[%clk 0:02:34.5]} 26...
Bc3 {[%clk 0:00:53.4]} 27. a3 {[%clk 0:02:30]} 27... a5 {[%clk 0:00:53.5]} 28.
Rc7 {[%clk 0:02:21.7]} 28... b4 {[%clk 0:00:53]} 29. a4 {[%clk 0:02:22.3]} 29...
g5 {[%clk 0:00:43.6]} 30. Rc5 {[%clk 0:02:22.1]} 30... g4 {[%clk 0:00:39.5]} 31.
f4 {[%clk 0:02:21.4]} 31... Rh6 {[%clk 0:00:40.3]} 32. Rc8+ {[%clk 0:02:01.8]}
32... Kg7 {[%clk 0:00:40.9]} 33. Rg8+ {[%clk 0:02:03.3]} 33... Kf6 {[%clk
0:00:41]} 34. e5+ {[%clk 0:02:04.9]} 34... Ke7 {[%clk 0:00:37.2]} 35. Rg7+
{[%clk 0:02:04.3]} 35... Kf8 {[%clk 0:00:37]} 36. Rg8+ {[%clk 0:02:00.8]} 36...
Ke7 {[%clk 0:00:37.6]} 37. Be4 {[%clk 0:01:55.1]} 37... Rxh2 {[%clk 0:00:37]}
38. Bxd3 {[%clk 0:01:54.6]} 38... Rxg2 {[%clk 0:00:36]} 39. Bxh7 {[%clk
0:01:55.3]} 39... g3 {[%clk 0:00:29.9]} 40. Be4 {[%clk 0:01:45.1]} 40... Rd2+
{[%clk 0:00:27.1]} 41. Kc1 {[%clk 0:01:45.5]} 41... Rf2 {[%clk 0:00:23.4]} 42.
Rg7+ {[%clk 0:01:39.8]} 42... Kf8 {[%clk 0:00:24]} 43. Rxg3 {[%clk 0:01:40.1]}
43... Rxf4 {[%clk 0:00:25.1]} 44. Bd3 {[%clk 0:01:36.9]} 44... Bxe5 {[%clk
0:00:24.7]} 45. Rg5 {[%clk 0:01:38]} 45... Bc7 {[%clk 0:00:19.2]} 46. Rc5 {[%clk
0:01:36]} 46... Bd8 {[%clk 0:00:19]} 47. Kd2 {[%clk 0:01:32.6]} 47... Rd4 {[%clk
0:00:19.2]} 48. Ke3 {[%clk 0:01:31.6]} 48... Rd6 {[%clk 0:00:20.1]} 49. Bc4
{[%clk 0:01:26.5]} 49... Bb6 {[%clk 0:00:20.6]} 0-1

[Event "*** Titled Tuesday Blitz"]
[Site "Chess.com"]
[Date "2019.02.05"]
[Round "6"]
[White "kleinebeer98"]
[Black "Shant_Sargsyan"]
[Result "1-0"]
[WhiteElo "2722"]
[BlackElo "2806"]
[TimeControl "180+2"]
[EndTime "14:23:22 PST"]
[Termination "kleinebeer98 won by checkmate"]

1. e4 {[%clk 0:03:01.9]} 1... e5 {[%clk 0:02:56.6]} 2. Nf3 {[%clk 0:03:01.7]}
2... Nc6 {[%clk 0:02:58.1]} 3. d4 {[%clk 0:03:02.9]} 3... exd4 {[%clk 0:02:59]}
4. Nxd4 {[%clk 0:03:04.8]} 4... Bc5 {[%clk 0:03:00.5]} 5. Be3 {[%clk 0:03:05.3]}
5... Qf6 {[%clk 0:02:59.3]} 6. c3 {[%clk 0:03:06.6]} 6... Nge7 {[%clk
0:02:59.2]} 7. Bb5 {[%clk 0:03:07.9]} 7... O-O {[%clk 0:02:57.8]} 8. O-O {[%clk
0:03:08]} 8... d6 {[%clk 0:02:59.2]} 9. Kh1 {[%clk 0:02:58.2]} 9... Bb6 {[%clk
0:02:52.5]} 10. f4 {[%clk 0:02:55.8]} 10... Nxd4 {[%clk 0:02:52.1]} 11. cxd4
{[%clk 0:02:54.4]} 11... d5 {[%clk 0:02:53.5]} 12. e5 {[%clk 0:02:37.6]} 12...
Qg6 {[%clk 0:02:54.6]} 13. Bd3 {[%clk 0:02:37.3]} 13... Bf5 {[%clk 0:02:55.6]}
14. Bxf5 {[%clk 0:02:38.7]} 14... Nxf5 {[%clk 0:02:57.2]} 15. Bf2 {[%clk
0:02:39.2]} 15... h5 {[%clk 0:02:57.3]} 16. Nc3 {[%clk 0:02:32.4]} 16... c6
{[%clk 0:02:58.3]} 17. b4 {[%clk 0:02:27.9]} 17... Qg4 {[%clk 0:02:58.3]} 18.
Qd3 {[%clk 0:02:23.3]} 18... Qg6 {[%clk 0:02:55.8]} 19. Qd2 {[%clk 0:02:17.9]}
19... f6 {[%clk 0:02:48.7]} 20. b5 {[%clk 0:01:56.9]} 20... Kh7 {[%clk
0:02:40.4]} 21. bxc6 {[%clk 0:01:54.3]} 21... bxc6 {[%clk 0:02:42.3]} 22. Rac1
{[%clk 0:01:51.7]} 22... fxe5 {[%clk 0:02:43.1]} 23. dxe5 {[%clk 0:01:53.6]}
23... Rab8 {[%clk 0:02:37.3]} 24. Na4 {[%clk 0:01:47]} 24... Bxf2 {[%clk
0:02:37.6]} 25. Qxf2 {[%clk 0:01:48.9]} 25... Rb4 {[%clk 0:02:32.5]} 26. Nc5
{[%clk 0:01:45.3]} 26... h4 {[%clk 0:02:24.9]} 27. Qd2 {[%clk 0:01:27.3]} 27...
Rd4 {[%clk 0:02:19.2]} 28. Qe1 {[%clk 0:01:14.6]} 28... Qh6 {[%clk 0:02:14.6]}
29. Kg1 {[%clk 0:01:11.1]} 29... Rxf4 {[%clk 0:02:14.2]} 30. Rxf4 {[%clk
0:01:13]} 30... Qxf4 {[%clk 0:02:15]} 31. Ne6 {[%clk 0:01:14.5]} 31... Qg4
{[%clk 0:01:28.1]} 32. Nxf8+ {[%clk 0:01:14.3]} 32... Kg8 {[%clk 0:01:30]} 33.
Ne6 {[%clk 0:00:56.9]} 33... h3 {[%clk 0:01:30.7]} 34. Qf2 {[%clk 0:00:52.9]}
34... Kh7 {[%clk 0:00:58.4]} 35. g3 {[%clk 0:00:50.9]} 35... Nh4 {[%clk
0:00:53.3]} 36. Qf4 {[%clk 0:00:32]} 36... Nf3+ {[%clk 0:00:43.7]} 37. Kf2
{[%clk 0:00:33.1]} 37... Nxh2 {[%clk 0:00:45]} 38. Ng5+ {[%clk 0:00:33.9]} 38...
Kg6 {[%clk 0:00:45.1]} 39. Rxc6+ {[%clk 0:00:32.7]} 39... Kh5 {[%clk 0:00:41]}
40. Qf7+ {[%clk 0:00:34.1]} 40... Kxg5 {[%clk 0:00:38.7]} 41. Qg6# {[%clk
0:00:35.2]} 1-0